Workbook

Sheet Predicted B-C
G3: Alaska DOT&PF
G4: Highway Safety Improvement Program
G5: Project Ranking Worksheet
D7: HSIP Project Name: | E7: Test Intersection - Regional Project for the Betterment of All Mankind
D8: Analysis Period: | E8: 2019-01-01 | G8: to | H8: 2023-12-31 | L8: Form Completed by: | O8: Joe Traffic | T8: Date: | U8: 2025-05-31
AF9: Apirl 2014 | AG9: 2014-11-01 | AH9: 2015-11-01 | AI9: 2016-12-19 | AJ9: 2018-02-12 | AK9: 2020-03-27 | AL9: 2021-03-21 | AM9: 2022-04-01 | AN9: 2023-03-01 | AO9: 2024-03-01 | AP9: 2025-02-05
D10: Miscellaneous Data | N10: Crash Cost Data | AC10: 2010 | AD10: 2011 | AE10: 2012 | AF10: 2014 | AG10: 2015 | AH10: 16th Edition | AI10: 17th Edition | AJ10: 18th Edition | AK10: 19th Edition | AL10: 20th Edition | AM10: 21st Edition | AN10: 22nd Edition | AO10: 23rd Edition | AP10: 24th Edition
D11: Rate of Return: | G11: 0.03 | N11: Crash Severity | T11: Crash Cost
D12: No of years of crash analysis | G12: =ROUND((H8-E8)/(365),0) -> 5 | N12: Property Damage Only: | T12: =AP12 -> 29900 | Z12: Revised for 23rd Edition costs | AC12: 15400 | AD12: 13900 | AE12: 13700 | AF12: 13900 | AG12: 13700 | AH12: 20000 | AI12: 20000 | AJ12: 21600 | AK12: 21800 | AL12: 22200 | AM12: 26400 | AN12: 30400 | AO12: 30800 | AP12: 29900
N13: Possible Injury: | T13: =AP13 -> 179200 | AM13: 158700 | AN13: 182700 | AO13: 184900 | AP13: 179200
N14: Minor Injury: | T14: =AP14 -> 567000 | AC14: 154000 | AD14: 139000 | AE14: 137000 | AF14: 139000 | AG14: 137000 | AH14: 200000 | AI14: 200000 | AJ14: 216000 | AK14: 218000 | AL14: 222000 | AM14: 502000 | AN14: 578000 | AO14: 585000 | AP14: 567000
N15: Serious Injury: | T15: =AP15 -> 1493000 | AC15: 771000 | AD15: 696000 | AE15: 687000 | AF15: 697000 | AG15: 685000 | AH15: 1000000 | AI15: 1001000 | AJ15: 1080000 | AK15: 1091000 | AL15: 1112000 | AM15: 1322000 | AN15: 1522000 | AO15: 1540000 | AP15: 1493000
N16: Fatality: | T16: =AP16 -> 2986000 | AC16: 1542000 | AD16: 1392000 | AE16: 1374000 | AF16: 1393000 | AG16: 1370000 | AH16: 2001000 | AI16: 2003000 | AJ16: 2159000 | AK16: 2183000 | AL16: 2224000 | AM16: 2645000 | AN16: 3044000 | AO16: 3081000 | AP16: 2986000
C18: Predicted Change in Crashes due to Improvement(s) | AD18: =(SUM(AD12:AD16)-SUM(AC12:AC16))/SUM(AC12:AC16) -> -0.09728488559 | AE18: -0.01303047883 | AF18: 0.01410679568 | AG18: -0.01658567034 | AH18: 0.4603073854 | AI18: 0.0009313877678 | AJ18: 0.07834987593 | AK18: =(SUM(AK12:AK16)-SUM(AJ12:AJ16))/SUM(AJ12:AJ16) -> 0.0107001093 | AL18: 0.01889692071 | AM18: 0.2999553098 | AN18: 0.1510496122 | AO18: 0.01205876314 | AP18: -0.03072836933
C19: Imprv | D19: Improvement | E19: Type of Crash | P19: Reduction | R19: # of Crashes Susceptible | AM19: New VSL 3/2021
C20: Type | E20: Susceptible to Reduction or Increase | P20: Factor | R20: to Reduction or Increase
C21: Num | E21: due to Improvement | P21: (+ or -) | R21: PDO | S21: Poss | T21: Min | U21: Ser | V21: Fat
C22: 108 | D22: Intersection Illumination | E22: Night Crashes at unlighted intersections | P22: -0.5 | R22: 6 | T22: 2 | U22: 1 | V22: 0
C25: 101.3 | D25: Install Lt Turn Pocket at Rural, Unsignalized Intersection (Major Road Approach Only) | E25: Rear-ends and side-swipes involving turning cars making the target movement | P25: -0.6 | R25: 5 | T25: 2 | U25: 2 | V25: 0
C28: 109 | D28: New Traffic Signal | E28: Angle crashes | P28: -0.6 | R28: 10 | T28: 5 | U28: 1 | V28: 0
E29: Rear-end crashes ( expected to increase) | P29: 0.25 | R29: 6 | T29: 5 | U29: 0 | V29: 0
Q34: Total Crashes Susceptible to Reduction or Increase: | R34: =SUM(R22:R33) -> 27 | S34: =SUM(S22:S33) -> 0 | T34: =SUM(T22:T33) -> 14 | U34: =SUM(U22:U33) -> 4 | V34: =SUM(V22:V33) -> 0
Q35: Predicted Change in Crashes: | R35: =$P22*R22+$P23*R23+$P24*R24+$P25*R25+$P26*R26+$P27*R27+$P28*R28+$P29*R29+$P30*R30+$P31*R31+$P32*R32+$P33*R33 -> -10.5 | S35: =$P22*S22+$P23*S23+$P24*S24+$P25*S25+$P26*S26+$P27*S27+$P28*S28+$P29*S29+$P30*S30+$P31*S31+$P32*S32+$P33*S33 -> 0 | T35: =$P22*T22+$P23*T23+$P24*T24+$P25*T25+$P26*T26+$P27*T27+$P28*T28+$P29*T29+$P30*T30+$P31*T31+$P32*T32+$P33*T33 -> -3.95 | U35: =$P22*U22+$P23*U23+$P24*U24+$P25*U25+$P26*U26+$P27*U27+$P28*U28+$P29*U29+$P30*U30+$P31*U31+$P32*U32+$P33*U33 -> -2.3 | V35: =$P22*V22+$P23*V23+$P24*V24+$P25*V25+$P26*V26+$P27*V27+$P28*V28+$P29*V29+$P30*V30+$P31*V31+$P32*V32+$P33*V33 -> 0
Q36: Predicted Change in Crash Cost ($1,000): | R36: =(R35*T12)/1000 -> -313.95 | S36: =(S35*T13)/1000 -> 0 | T36: =(T35*T14)/1000 -> -2239.65 | U36: =(U35*T15)/1000 -> -3433.9 | V36: =(V35*T16)/1000 -> 0
D38: Benefit/Cost of Improvements (Safety and M&O Benefits Only)
D39: Improvement | E39: Total | F39: Ann | G39: Life | H39: Predicted | M39: Predicted | O39: Annualized | Q39: Annualized | T39: Benefit
E40: Proj | F40: M/O | G40: of | H40: Change in | M40: Change in | O40: Safety | Q40: Constr. | T40: Cost
E41: Cost | F41: Cost | G41: Impvt | H41: Crashes | M41: Crash | O41: and M&O | Q41: and M&O | T41: (Safety and M&O
E42: (K) | F42: (K) | G42: (yrs) | H42: PDO | I42: Poss | J42: Min | K42: Ser | L42: Fat | M42: Cost | O42: Benefits | Q42: Costs | T42: Benefits only)
D43: =D22 -> Intersection Illumination | E43: 250 | F43: 1 | G43: 15 | H43: =($P22*R22)+($P23*R23)+($P24*R24) -> -3 | I43: =($P22*S22)+($P23*S23)+($P24*S24) -> 0 | J43: =($P22*T22)+($P23*T23)+($P24*T24) -> -1 | K43: =($P22*U22)+($P23*U23)+($P24*U24) -> -0.5 | L43: =($P22*V22)+($P23*V23)+($P24*V24) -> 0 | M43: =(H43*T$12)+(I43*T$13)+(J43*T$14)+(K43*T15)+(L43*T$16) -> -1403200 | O43: =-(IF(M43<>0,(M43/G$12)+(IF($F43<0,1,0)*$F43*1000),0)) -> 280640 | Q43: =IF((E43+F43)<>0,(-PMT($G$11,$G43,($E43*1000),0)+(IF($F43>0,1,0)*$F43*1000)),0) -> 21941.64512 | T43: =IF((E43+F43)<>0,IF(Q43<>0,ROUND(O43/(Q43),1)&" : 1",0),0) -> 12.8 : 1
D44: =D25 -> Install Lt Turn Pocket at Rural, Unsignalized Intersection (Major Road Approach Only) | E44: 600 | F44: 0.5 | G44: 10 | H44: =($P25*R25)+($P26*R26)+($P27*R27) -> -3 | I44: =($P25*S25)+($P26*S26)+($P27*S27) -> 0 | J44: =($P25*T25)+($P26*T26)+($P27*T27) -> -1.2 | K44: =($P25*U25)+($P26*U26)+($P27*U27) -> -1.2 | L44: =($P25*V25)+($P26*V26)+($P27*V27) -> 0 | M44: =(H44*T$12)+(I44*T$13)+(J44*T$14)+(K44*T15)+(L44*T$16) -> -2561700 | O44: =-(IF(M44<>0,(M44/G$12)+(IF($F44<0,1,0)*$F44*1000),0)) -> 512340 | Q44: =IF((E44+F44)<>0,(-PMT($G$11,$G44,($E44*1000),0)+(IF($F44>0,1,0)*$F44*1000)),0) -> 70838.30396 | T44: =IF((E44+F44)<>0,IF(Q44<>0,ROUND(O44/(Q44),1)&" : 1",0),0) -> 7.2 : 1
D45: =D28 -> New Traffic Signal | E45: 1250 | F45: 10 | G45: 10 | H45: =($P28*R28)+($P29*R29)+($P30*R30) -> -4.5 | I45: =($P28*S28)+($P29*S29)+($P30*S30) -> 0 | J45: =($P28*T28)+($P29*T29)+($P30*T30) -> -1.75 | K45: =($P28*U28)+($P29*U29)+($P30*U30) -> -0.6 | L45: =($P28*V28)+($P29*V29)+($P30*V30) -> 0 | M45: =(H45*T$12)+(I45*T$13)+(J45*T$14)+(K45*T15)+(L45*T$16) -> -2022600 | O45: =-(IF(M45<>0,(M45/G$12)+(IF($F45<0,1,0)*$F45*1000),0)) -> 404520 | Q45: =IF((E45+F45)<>0,(-PMT($G$11,$G45,($E45*1000),0)+(IF($F45>0,1,0)*$F45*1000)),0) -> 156538.1333 | T45: =IF((E45+F45)<>0,IF(Q45<>0,ROUND(O45/(Q45),1)&" : 1",0),0) -> 2.6 : 1
D46: =D31 -> 0 | H46: =($P31*R31)+($P32*R32)+($P33*R33) -> 0 | I46: =($P31*S31)+($P32*S32)+($P33*S33) -> 0 | J46: =($P31*T31)+($P32*T32)+($P33*T33) -> 0 | K46: =($P31*U31)+($P32*U32)+($P33*U33) -> 0 | L46: =($P31*V31)+($P32*V32)+($P33*V33) -> 0 | M46: =(H46*T$12)+(J46*T$14)+(K46*T15)+(L46*T$16)+(I46*$T$13) -> 0 | O46: =-(IF(M46<>0,(M46/G$12)+(IF($F46<0,1,0)*$F46*1000),0)) -> 0 | Q46: =IF((E46+F46)<>0,(-PMT($G$11,$G46,($E46*1000),0)+(IF($F46>0,1,0)*$F46*1000)),0) -> 0 | T46: =IF((E46+F46)<>0,IF(Q46<>0,ROUND(O46/(Q46),1)&" : 1",0),0) -> 0
D47: Subtotals: | H47: =SUM(H43:H46) -> -10.5 | I47: =SUM(I43:I46) -> 0 | J47: =SUM(J43:J46) -> -3.95 | K47: =SUM(K43:K46) -> -2.3 | L47: =SUM(L43:L46) -> 0
D48: Totals/Averages: | E48: =SUM(E43:E46) -> 2100 | F48: =SUM(F43:F46) -> 11.5 | G48: =SUMPRODUCT(E43:E46,G43:G46)/SUM(E43:E46) -> 10.5952381 | H48: =SUM(H47:L47) -> -16.75 | M48: =SUM(M43:N46) -> -5987500 | O48: =-(IF(M48<>0,(M48/G$12)+(IF($F48<0,1,0)*$F48*1000),0)) -> 1197500 | Q48: =SUM(Q43:R46) -> 249318.0823 | T48: =IF(Q48<>0,ROUND(O48/(Q48),2)&" : 1",0) -> 4.8 : 1 | Z48: =ROUND(O48/Q48,1) -> 4.8
D50: Benefit Cost Formula (Safety and M&O Benefits Only)
D52: B/C Ratio = | E52: (Estimated Annual Reduction in Crash Cost)+(Decrease in Ann Maintenance Cost, 0 if increase)
E53: (Annualized Construction Project cost)+(Increase in Ann Maintenance cost, 0 if decrease)
D55: Combined Effects of Multiple Countermeasures
D58: Compute a combined Crash Reduction Factor (CRF) only for crash types jointly influenced by dissimilar improvements at the location of interest. Consider limitations of this formula as discussed in TRB Special Report 214 Designing Safer Roads, 1987, pg. 253-255.

Sheet Post Eval Input
E3: Alaska DOT&PF
E4: Highway Safety Improvement Program
E5: HSIP Project Evaluation Worksheet
E6: Computation of Actual B/C and Crash Reduction Factors - INPUT
C8: HSIP Project Name: | D8: ='Predicted B-C'!E7 -> Test Intersection - Regional Project for the Betterment of All Mankind | O8: Form Completed by: | T8: Joe Traffic | Z8: Date: | AB8: 2032-07-15
C10: Project Identification Data | H10: Miscellaneous Data | U10: Crash Cost Data
C11: Construction Project Name: | E11: Test Construction Project | H11: Rate of Return: | Q11: 0.03 | U11: Crash Severity | AA11: Crash Cost
H12: Intersection (I) or Segment (S) | Q12: I | U12: Property Damage Only: | AA12: ='Predicted B-C'!T12 -> 29900
U13: Possible Injury | AA13: ='Predicted B-C'!T13 -> 179200
H14: If Segment, Length in Miles: | U14: Minor Injury: | AA14: ='Predicted B-C'!T14 -> 567000
C15: Federal Project Number: | E15: TEST-PROJ-1 | H15: Date Construction Began: | Q15: 2026-04-15 | U15: Serious Injury: | AA15: ='Predicted B-C'!T15 -> 1493000
C16: State (AKSAS/IRIS) Proj. Number: | E16: 12345 | H16: Date Project Accepted for Traffic: | Q16: 2028-10-31 | U16: Fatality: | AA16: ='Predicted B-C'!T16 -> 2986000
C18: CRASH HISTORY (All Crashes) | T18: Crash Trend
C19: Period | E19: Begin | F19: End | G19: No of | H19: PDO | I19: Poss | J19: Min | K19: Maj | L19: Fat | M19: Tot- | O19: Avg | T19: Trend Control Area: | AA19: Mjr City / Borough
E20: Date | F20: Date | G20: Years | M20: al | O20: ADT | T20: Crash Rate change | AA20: 0
C21: 1) Before (HSIP Analysis Period) | E21: ='Predicted B-C'!E8 -> 2019-01-01 | F21: ='Predicted B-C'!H8 -> 2023-12-31 | G21: =(F21-E21)/365 -> 5 | H21: 29 | J21: 12 | K21: 6 | M21: =SUM(H21:L21) -> 47 | O21: 10000 | T21: from Before Period (1+2)
C22: 2) Before-Interim | E22: 2024-01-01 | F22: 2025-12-31 | G22: =(F22-E22)/365 -> 2 | H22: 12 | J22: 3 | K22: 3 | M22: =SUM(H22:L22) -> 18 | O22: 10500 | T22: to After Period (3)
C23: 1 and 2 Combined | E23: =E21 -> 2019-01-01 | F23: =F22 -> 2025-12-31 | G23: =G21+G22 -> 7 | H23: =H21+H22 -> 41 | I23: 0 | J23: 15 | K23: 9 | L23: 0 | M23: =SUM(H23:L23) -> 65 | O23: =(O21*G21+O22*G22)/(G21+G22) -> 10142.85714
C24: 3) After | E24: 2029-01-01 | F24: 2031-12-31 | G24: =(F24-E24)/365 -> 2.997260274 | H24: 13 | J24: 6 | K24: 2 | L24: 0 | M24: =SUM(H24:L24) -> 21 | O24: 11000
C27: CRASH HISTORY (Crashes Susceptible to Reduction or Increase)
C28: Improvement | D28: Type of Crash | L28: BEFORE (1+2) | X28: AFTER (3)
D29: Susceptible to Reduction or Increase | L29: HSIP Analysis Period | Q29: Interim | V29: Total | W29: Total | X29: =(MONTH(E24)&"/"&DAY(E24)&"/"&YEAR(E24)&" to "&MONTH(F24)&"/"&DAY(F24)&"/"&YEAR(F24)) -> 1/1/2029 to 12/31/2031 | AC29: Total | AD29: Total
D30: Due to Improvement | L30: =(MONTH(E21)&"/"&DAY(E21)&"/"&YEAR(E21)&" to "&MONTH(F21)&"/"&DAY(F21)&"/"&YEAR(F21)) -> 1/1/2019 to 12/31/2023 | Q30: =(MONTH(E22)&"/"&DAY(E22)&"/"&YEAR(E22)&" to "&MONTH(F22)&"/"&DAY(F22)&"/"&YEAR(F22)) -> 1/1/2024 to 12/31/2025 | V30: No | W30: Crash | X30: PDO | Z30: Min | AA30: Ser | AB30: Fat | AC30: No | AD30: Crash
L31: PDO | M31: Poss | N31: Min | O31: Ser | P31: Fat | Q31: PDO | R31: Poss | S31: Min | T31: Ser | U31: Fat | V31: of | W31: Cost | Y31: Poss | AC31: of | AD31: Cost
V32: Crashes | W32: ($K) | AC32: Crashes | AD32: ($K)
C33: ='Predicted B-C'!D22 -> Intersection Illumination | D33: ='Predicted B-C'!E22 -> Night Crashes at unlighted intersections | L33: ='Predicted B-C'!R22 -> 6 | M33: ='Predicted B-C'!S22 -> 0 | N33: ='Predicted B-C'!T22 -> 2 | O33: ='Predicted B-C'!U22 -> 1 | P33: ='Predicted B-C'!V22 -> 0 | Q33: 2 | T33: 1 | V33: =SUM(L33:U33) -> 12 | W33: =((L33+Q33)*$AA$12+(M33+R33)*$AA$13+(N33+S33)*$AA$14+(O33+T33)*$AA$15+(P33+U33)*$AA$16)/1000 -> 4359.2 | X33: 2 | Z33: 0 | AB33: 0 | AC33: =SUM(X33:AB33) -> 2 | AD33: =(X33*$AA$12+Y33*$AA$13+Z33*$AA$14+AA33*$AA$15+AB33*$AA$16)/1000 -> 59.8
C34: ='Predicted B-C'!D23 -> 0 | D34: ='Predicted B-C'!E23 -> 0 | L34: ='Predicted B-C'!R23 -> 0 | M34: ='Predicted B-C'!S23 -> 0 | N34: ='Predicted B-C'!T23 -> 0 | O34: ='Predicted B-C'!U23 -> 0 | P34: ='Predicted B-C'!V23 -> 0 | V34: 0 | W34: =((L34+Q34)*$AA$12+(M34+R34)*$AA$13+(N34+S34)*$AA$14+(O34+T34)*$AA$15+(P34+U34)*$AA$16)/1000 -> 0 | AC34: =SUM(X34:AB34) -> 0 | AD34: =(X34*$AA$12+Y34*$AA$13+Z34*$AA$14+AA34*$AA$15+AB34*$AA$16)/1000 -> 0
C35: ='Predicted B-C'!D24 -> 0 | D35: ='Predicted B-C'!E24 -> 0 | L35: ='Predicted B-C'!R24 -> 0 | M35: ='Predicted B-C'!S24 -> 0 | N35: ='Predicted B-C'!T24 -> 0 | O35: ='Predicted B-C'!U24 -> 0 | P35: ='Predicted B-C'!V24 -> 0 | V35: 0 | W35: 0 | AC35: 0 | AD35: 0
C36: ='Predicted B-C'!D25 -> Install Lt Turn Pocket at Rural, Unsignalized Intersection (Major Road Approach Only) | D36: ='Predicted B-C'!E25 -> Rear-ends and side-swipes involving turning cars making the target movement | L36: ='Predicted B-C'!R25 -> 5 | M36: ='Predicted B-C'!S25 -> 0 | N36: ='Predicted B-C'!T25 -> 2 | O36: ='Predicted B-C'!U25 -> 2 | P36: ='Predicted B-C'!V25 -> 0 | Q36: 1 | S36: 1 | T36: 1 | U36: 0 | V36: 12 | W36: 6359.4 | X36: 1 | Z36: 0 | AA36: 1 | AB36: 0 | AC36: 2 | AD36: 1522.9
C37: ='Predicted B-C'!D26 -> 0 | D37: ='Predicted B-C'!E26 -> 0 | L37: ='Predicted B-C'!R26 -> 0 | M37: ='Predicted B-C'!S26 -> 0 | N37: ='Predicted B-C'!T26 -> 0 | O37: ='Predicted B-C'!U26 -> 0 | P37: ='Predicted B-C'!V26 -> 0 | V37: =SUM(L37:U37) -> 0 | W37: =((L37+Q37)*$AA$12+(M37+R37)*$AA$13+(N37+S37)*$AA$14+(O37+T37)*$AA$15+(P37+U37)*$AA$16)/1000 -> 0 | AC37: 0 | AD37: 0
C38: ='Predicted B-C'!D27 -> 0 | D38: ='Predicted B-C'!E27 -> 0 | L38: ='Predicted B-C'!R27 -> 0 | M38: ='Predicted B-C'!S27 -> 0 | N38: ='Predicted B-C'!T27 -> 0 | O38: ='Predicted B-C'!U27 -> 0 | P38: ='Predicted B-C'!V27 -> 0 | V38: 0 | W38: 0 | AC38: 0 | AD38: 0
C39: ='Predicted B-C'!D28 -> New Traffic Signal | D39: ='Predicted B-C'!E28 -> Angle crashes | L39: ='Predicted B-C'!R28 -> 10 | M39: ='Predicted B-C'!S28 -> 0 | N39: ='Predicted B-C'!T28 -> 5 | O39: ='Predicted B-C'!U28 -> 1 | P39: ='Predicted B-C'!V28 -> 0 | Q39: 6 | S39: 2 | U39: 0 | V39: 24 | W39: 5940.4 | X39: 3 | Z39: 1 | AB39: 0 | AC39: 4 | AD39: 656.7
C40: ='Predicted B-C'!D29 -> 0 | D40: ='Predicted B-C'!E29 -> Rear-end crashes ( expected to increase) | L40: ='Predicted B-C'!R29 -> 6 | M40: ='Predicted B-C'!S29 -> 0 | N40: ='Predicted B-C'!T29 -> 5 | O40: ='Predicted B-C'!U29 -> 0 | P40: ='Predicted B-C'!V29 -> 0 | Q40: 2 | T40: 1 | U40: 0 | V40: 14 | W40: 4567.2 | X40: 5 | Z40: 2 | AA40: 1 | AB40: 0 | AC40: 8 | AD40: 2776.5
C41: ='Predicted B-C'!D30 -> 0 | D41: ='Predicted B-C'!E30 -> 0 | L41: ='Predicted B-C'!R30 -> 0 | M41: ='Predicted B-C'!S30 -> 0 | N41: ='Predicted B-C'!T30 -> 0 | O41: ='Predicted B-C'!U30 -> 0 | P41: ='Predicted B-C'!V30 -> 0 | V41: 0 | W41: 0 | AC41: 0 | AD41: 0
C42: ='Predicted B-C'!D31 -> 0 | D42: ='Predicted B-C'!E31 -> 0 | L42: ='Predicted B-C'!R31 -> 0 | M42: ='Predicted B-C'!S31 -> 0 | N42: ='Predicted B-C'!T31 -> 0 | O42: ='Predicted B-C'!U31 -> 0 | P42: ='Predicted B-C'!V31 -> 0 | V42: 0 | W42: 0 | AC42: 0 | AD42: 0
C43: ='Predicted B-C'!D32 -> 0 | D43: ='Predicted B-C'!E32 -> 0 | L43: ='Predicted B-C'!R32 -> 0 | M43: ='Predicted B-C'!S32 -> 0 | N43: ='Predicted B-C'!T32 -> 0 | O43: ='Predicted B-C'!U32 -> 0 | P43: ='Predicted B-C'!V32 -> 0 | V43: 0 | W43: 0 | AC43: 0 | AD43: 0
C44: ='Predicted B-C'!D33 -> 0 | D44: ='Predicted B-C'!E33 -> 0 | L44: ='Predicted B-C'!R33 -> 0 | M44: ='Predicted B-C'!S33 -> 0 | N44: ='Predicted B-C'!T33 -> 0 | O44: ='Predicted B-C'!U33 -> 0 | P44: ='Predicted B-C'!V33 -> 0 | V44: 0 | W44: 0 | AC44: 0 | AD44: 0
K45: Totals / Averages: | L45: =SUM(L33:L44) -> 27 | M45: 0 | N45: 14 | O45: 4 | P45: 0 | Q45: 11 | R45: 0 | S45: 3 | T45: 3 | U45: 0 | V45: 62 | W45: 21226.2 | X45: 11 | Y45: 0 | Z45: 3 | AA45: 2 | AB45: 0 | AC45: =SUM(AC33:AC44) -> 16 | AD45: =SUM(AD33:AD44) -> 5015.9
K46: Total Crash Costs: | L46: =(L45+Q45)*$AA$12+(M45+R45)*$AA$13+(N45+S45)*$AA$14+(O45+T45)*$AA$15+(P45+U45)*$AA$16 -> 21226200 | X46: =X45*$AA$12+Y45*$AA$13+Z45*$AA$14+AA45*$AA$15+AB45*$AA$16 -> 5015900

Sheet Post-Eval ARF
J3: Alaska DOT&PF
J4: Highway Safety Improvement Program
J5: HSIP Project Evaluation Worksheet
J6: Computation of Actual Crash Reduction Factors - RESULTS
C8: Project: | D8: ='Post Eval Input'!D8 -> Test Intersection - Regional Project for the Betterment of All Mankind | K8: Form Completed by: | N8: ='Post Eval Input'!T8 -> Joe Traffic | R8: Date: | S8: ='Post Eval Input'!AB8 -> 2032-07-15
C10: Change in Total Crashes | X10: Modified Binomial Test
C11: Period | E11: Begin | F11: End | G11: No of | H11: Crash | J11: Crash | K11: Accident | M11: Percent Change | X11: Significant | Y11: Significant
E12: Date | F12: Date | G12: Crashes | H12: Cost | J12: Rate | K12: Cost per | M12: From - To | O12: Crash | Q12: Statistically | S12: Crash | X12: DECREASE | Y12: INCREASE
K13: Ent Veh or Veh-Mile | O13: Rate | Q13: Significant? | S13: Cost/Veh | X13: in Crashes | Y13: in Crashes
C14: 1) Before (HSIP Analysis Period) | E14: ='Predicted B-C'!E8 -> 2019-01-01 | F14: ='Predicted B-C'!H8 -> 2023-12-31 | G14: =SUM('Post Eval Input'!H21:L21) -> 47 | H14: ='Post Eval Input'!H21*'Post Eval Input'!$AA$12+'Post Eval Input'!J21*'Post Eval Input'!$AA$14+'Post Eval Input'!K21*'Post Eval Input'!$AA$15+'Post Eval Input'!L21*'Post Eval Input'!$AA$16+'Post Eval Input'!I21*'Post Eval Input'!$AA$13 -> 16629100 | J14: =('Post-Eval ARF'!G14*1000000)/('Post Eval Input'!O21*365*'Post Eval Input'!G21*IF(OR('Post Eval Input'!$Q$12="S",'Post Eval Input'!$Q$12="s"),'Post Eval Input'!$Q$14,1)) -> 2.575342466 | K14: =('Post-Eval ARF'!H14)/('Post Eval Input'!O21*365*'Post Eval Input'!G21*IF(OR('Post Eval Input'!$Q$12="S",'Post Eval Input'!$Q$12="s"),'Post Eval Input'!$Q$14,1)) -> 0.9111835616 | M14: 1 to 2 | O14: =('Post-Eval ARF'!J15-'Post-Eval ARF'!J14)/'Post-Eval ARF'!J14 -> -0.08814589666 | Q14: =IF(O14<0,IF(ABS(O14)>=X14,"Yes","No"),IF(ABS(O14)>=Y14,"Yes","No")) -> No | S14: =('Post-Eval ARF'!K15-'Post-Eval ARF'!K14)/'Post-Eval ARF'!K14 -> -0.06377546418 | X14: =IF(G14<>0,2.0657*G14^(-0.4726),0) -> 0.3348372773 | Y14: =IF(G14<>0,3.7137*G14^(-0.5743),0) -> 0.4069312269
C15: 2) Before-Interim | E15: ='Post Eval Input'!E22 -> 2024-01-01 | F15: ='Post Eval Input'!F22 -> 2025-12-31 | G15: =SUM('Post Eval Input'!H22:L22) -> 18 | H15: ='Post Eval Input'!H22*'Post Eval Input'!AA$12+'Post Eval Input'!J22*'Post Eval Input'!AA$14+'Post Eval Input'!K22*'Post Eval Input'!AA$15+'Post Eval Input'!L22*'Post Eval Input'!AA$16+'Post Eval Input'!I22*'Post Eval Input'!$AA$13 -> 6538800 | J15: =('Post-Eval ARF'!G15*1000000)/('Post Eval Input'!O22*365*'Post Eval Input'!G22*IF(OR('Post Eval Input'!Q$12="S",'Post Eval Input'!Q$12="s"),'Post Eval Input'!Q$14,1)) -> 2.348336595 | K15: =('Post-Eval ARF'!H15)/('Post Eval Input'!O22*365*'Post Eval Input'!G22*IF(OR('Post Eval Input'!$Q$12="S",'Post Eval Input'!$Q$12="s"),'Post Eval Input'!$Q$14,1)) -> 0.853072407 | M15: 2 to 3 | O15: =('Post-Eval ARF'!J17-'Post-Eval ARF'!J15)/'Post-Eval ARF'!J15 -> -0.2568971248 | Q15: =IF(O15<0,IF(ABS(O15)>=X15,"Yes","No"),IF(ABS(O15)>=Y15,"Yes","No")) -> No | S15: =('Post-Eval ARF'!K17-'Post-Eval ARF'!K15)/'Post-Eval ARF'!K15 -> -0.3398808098 | X15: =IF(G15<>0,2.0657*G15^(-0.4726),0) -> 0.5270180183 | Y15: =IF(G15<>0,3.7137*G15^(-0.5743),0) -> 0.7061611453
C16: 1 and 2 Combined | E16: ='Post Eval Input'!E23 -> 2019-01-01 | F16: ='Post Eval Input'!F23 -> 2025-12-31 | G16: =SUM('Post Eval Input'!H23:L23) -> 65 | H16: ='Post Eval Input'!H23*'Post Eval Input'!AA$12+'Post Eval Input'!J23*'Post Eval Input'!AA$14+'Post Eval Input'!K23*'Post Eval Input'!AA$15+'Post Eval Input'!L23*'Post Eval Input'!AA$16+'Post Eval Input'!I23*'Post Eval Input'!$AA$13 -> 23167900 | J16: =('Post-Eval ARF'!G16*1000000)/('Post Eval Input'!O23*365*'Post Eval Input'!G23*IF(OR('Post Eval Input'!Q$12="S",'Post Eval Input'!Q$12="s"),'Post Eval Input'!Q$14,1)) -> 2.508199884 | K16: =('Post-Eval ARF'!H16)/('Post Eval Input'!O23*365*'Post Eval Input'!G23*IF(OR('Post Eval Input'!$Q$12="S",'Post Eval Input'!$Q$12="s"),'Post Eval Input'!$Q$14,1)) -> 0.8939957554 | M16: (1+2) to 3 | O16: =('Post-Eval ARF'!J17-'Post-Eval ARF'!J16)/'Post-Eval ARF'!J16 -> -0.3042597256 | Q16: =IF(O16<0,IF(ABS(O16)>=X16,"Yes","No"),IF(ABS(O16)>=Y16,"Yes","No")) -> Yes | S16: =('Post-Eval ARF'!K17-'Post-Eval ARF'!K16)/'Post-Eval ARF'!K16 -> -0.3700982772 | X16: =IF(G16<>0,2.0657*G16^(-0.4726),0) -> 0.2872661125 | Y16: =IF(G16<>0,3.7137*G16^(-0.5743),0) -> 0.3377930244
C17: 3) After | E17: ='Post Eval Input'!E24 -> 2029-01-01 | F17: ='Post Eval Input'!F24 -> 2031-12-31 | G17: =SUM('Post Eval Input'!H24:L24) -> 21 | H17: ='Post Eval Input'!H24*'Post Eval Input'!AA$12+'Post Eval Input'!J24*'Post Eval Input'!AA$14+'Post Eval Input'!K24*'Post Eval Input'!AA$15+'Post Eval Input'!L24*'Post Eval Input'!AA$16+'Post Eval Input'!I24*'Post Eval Input'!$AA$13 -> 6776700 | J17: =('Post-Eval ARF'!G17*1000000)/('Post Eval Input'!O24*365*'Post Eval Input'!G24*IF(OR('Post Eval Input'!Q$12="S",'Post Eval Input'!Q$12="s"),'Post Eval Input'!Q$14,1)) -> 1.745055676 | K17: =('Post-Eval ARF'!H17)/('Post Eval Input'!O24*365*'Post Eval Input'!G24*IF(OR('Post Eval Input'!$Q$12="S",'Post Eval Input'!$Q$12="s"),'Post Eval Input'!$Q$14,1)) -> 0.5631294665
C19: Change in Crashes Susceptible to Reduction or Increase
C20: Improvement | D20: Type of Crash | K20: BEFORE (1+2) | M20: AFTER (3) | O20: Crash RATE | S20: Crash COST
D21: Susceptible to Reduction or Increase | K21: No of | L21: Crash | M21: No of | N21: Crash | O21: Reduction Factor | S21: Reduction Factor | X21: Modified Binomial Test
D22: due to Improvement | K22: Crashes | L22: Cost | M22: Crashes | N22: Cost | O22: Change | P22: Adj | Q22: Stat. | R22: Adj. | S22: Change | T22: Adj for | U22: Pre- | X22: Significant | Y22: Significant
K23: per | L23: /yr | M23: per | N23: /yr | O23: in | P23: for | Q23: Signif- | R23: for | S23: in crash | T23: Vol & | U23: dic- | X23: DECREASE | Y23: INCREASE
K24: Year | L24: ($K) | M24: Year | N24: ($K) | O24: crashes/yr | P24: Vol | Q24: icant? | R24: Trend | S24: cost/yr | T24: Trend | U24: ted | X24: in Crashes | Y24: in Crashes
C25: ='Predicted B-C'!D22 -> Intersection Illumination | D25: ='Predicted B-C'!E22 -> Night Crashes at unlighted intersections | K25: ='Post Eval Input'!V33/'Post Eval Input'!G$23 -> 1.714285714 | L25: ='Post Eval Input'!W33/'Post Eval Input'!$G$23 -> 622.7428571 | M25: ='Post Eval Input'!AC33/'Post Eval Input'!G$24 -> 0.6672760512 | N25: ='Post Eval Input'!AD33/'Post Eval Input'!G$24 -> 19.95155393 | O25: =IF(K25<>0,(M25-K25)/K25,0) -> -0.6107556368 | P25: =IF(O25<>0,((M25/K25)*('Post Eval Input'!O$23/'Post Eval Input'!O$24)-1),0) -> -0.6410863664 | Q25: =IF(AND(P25<>0,P25<>""),IF(P25<=0,IF(ABS(P25)>=X25,IF(SIGN(P25)=SIGN('Predicted B-C'!P22),"YES","UKN"),"NO"),IF(ABS(P25)>=Y25,IF(SIGN(P25)=SIGN('Predicted B-C'!P22),"YES","N/A"),"NO")),"") -> YES | R25: =P25/(1-'Post Eval Input'!AA$20) -> -0.6410863664 | S25: =IF(L25<>0,(N25-L25)/L25,0) -> -0.9679618101 | T25: =IF(S25<>0,IF((((N25/L25)*('Post Eval Input'!O$23/'Post Eval Input'!O$24)-1)/(1-'Post Eval Input'!AA$20))<-1,-1,(((N25/L25)*('Post Eval Input'!O$23/'Post Eval Input'!O$24)-1)/(1-'Post Eval Input'!AA$20))),0) -> -0.9704582924 | U25: ='Predicted B-C'!P22 -> -0.5 | X25: =IF('Post Eval Input'!V33<>0,2.0657*'Post Eval Input'!V33^(-0.4726),0) -> 0.6383313771 | Y25: =IF('Post Eval Input'!V33<>0,3.7137*'Post Eval Input'!V33^(-0.5743),0) -> 0.8913187203
C26: ='Predicted B-C'!D23 -> 0 | D26: ='Predicted B-C'!E23 -> 0 | K26: ='Post Eval Input'!V34/'Post Eval Input'!G$23 -> 0 | L26: ='Post Eval Input'!W34/'Post Eval Input'!$G$23 -> 0 | M26: ='Post Eval Input'!AC34/'Post Eval Input'!G$24 -> 0 | N26: ='Post Eval Input'!AD34/'Post Eval Input'!G$24 -> 0 | O26: =IF(K26<>0,(M26-K26)/K26,0) -> 0 | P26: =IF(O26<>0,((M26/K26)*('Post Eval Input'!O$23/'Post Eval Input'!O$24)-1),0) -> 0 | Q26: =IF(AND(P26<>0,P26<>""),IF(P26<=0,IF(ABS(P26)>=X26,IF(SIGN(P26)=SIGN('Predicted B-C'!P23),"YES","UKN"),"NO"),IF(ABS(P26)>=Y26,IF(SIGN(P26)=SIGN('Predicted B-C'!P23),"YES","N/A"),"NO")),"") ->  | R26: =P26/(1-'Post Eval Input'!AA$20) -> 0 | S26: =IF(L26<>0,(N26-L26)/L26,0) -> 0 | T26: =IF(S26<>0,IF((((N26/L26)*('Post Eval Input'!O$23/'Post Eval Input'!O$24)-1)/(1-'Post Eval Input'!AA$20))<-1,-1,(((N26/L26)*('Post Eval Input'!O$23/'Post Eval Input'!O$24)-1)/(1-'Post Eval Input'!AA$20))),0) -> 0 | U26: ='Predicted B-C'!P23 -> 0 | X26: =IF('Post Eval Input'!V34<>0,2.0657*'Post Eval Input'!V34^(-0.4726),0) -> 0 | Y26: =IF('Post Eval Input'!V34<>0,3.7137*'Post Eval Input'!V34^(-0.5743),0) -> 0
C27: ='Predicted B-C'!D24 -> 0 | D27: ='Predicted B-C'!E24 -> 0 | K27: ='Post Eval Input'!V35/'Post Eval Input'!G$23 -> 0 | L27: ='Post Eval Input'!W35/'Post Eval Input'!$G$23 -> 0 | M27: ='Post Eval Input'!AC35/'Post Eval Input'!G$24 -> 0 | N27: ='Post Eval Input'!AD35/'Post Eval Input'!G$24 -> 0 | O27: 0 | P27: =IF(O27<>0,((M27/K27)*('Post Eval Input'!O$23/'Post Eval Input'!O$24)-1),0) -> 0 | Q27: =IF(AND(P27<>0,P27<>""),IF(P27<=0,IF(ABS(P27)>=X27,IF(SIGN(P27)=SIGN('Predicted B-C'!P24),"YES","UKN"),"NO"),IF(ABS(P27)>=Y27,IF(SIGN(P27)=SIGN('Predicted B-C'!P24),"YES","N/A"),"NO")),"") ->  | R27: =P27/(1-'Post Eval Input'!AA$20) -> 0 | S27: 0 | T27: =IF(S27<>0,IF((((N27/L27)*('Post Eval Input'!O$23/'Post Eval Input'!O$24)-1)/(1-'Post Eval Input'!AA$20))<-1,-1,(((N27/L27)*('Post Eval Input'!O$23/'Post Eval Input'!O$24)-1)/(1-'Post Eval Input'!AA$20))),0) -> 0 | U27: ='Predicted B-C'!P24 -> 0 | X27: =IF('Post Eval Input'!V35<>0,2.0657*'Post Eval Input'!V35^(-0.4726),0) -> 0 | Y27: =IF('Post Eval Input'!V35<>0,3.7137*'Post Eval Input'!V35^(-0.5743),0) -> 0
C28: ='Predicted B-C'!D25 -> Install Lt Turn Pocket at Rural, Unsignalized Intersection (Major Road Approach Only) | D28: ='Predicted B-C'!E25 -> Rear-ends and side-swipes involving turning cars making the target movement | K28: ='Post Eval Input'!V36/'Post Eval Input'!G$23 -> 1.714285714 | L28: ='Post Eval Input'!W36/'Post Eval Input'!$G$23 -> 908.4857143 | M28: ='Post Eval Input'!AC36/'Post Eval Input'!G$24 -> 0.6672760512 | N28: ='Post Eval Input'!AD36/'Post Eval Input'!G$24 -> 508.0973492 | O28: -0.6107556368 | P28: =IF(O28<>0,((M28/K28)*('Post Eval Input'!O$23/'Post Eval Input'!O$24)-1),0) -> -0.6410863664 | Q28: =IF(AND(P28<>0,P28<>""),IF(P28<=0,IF(ABS(P28)>=X28,IF(SIGN(P28)=SIGN('Predicted B-C'!P25),"YES","UKN"),"NO"),IF(ABS(P28)>=Y28,IF(SIGN(P28)=SIGN('Predicted B-C'!P25),"YES","N/A"),"NO")),"") -> YES | R28: =P28/(1-'Post Eval Input'!AA$20) -> -0.6410863664 | S28: -0.4407205956 | T28: =IF(S28<>0,IF((((N28/L28)*('Post Eval Input'!O$23/'Post Eval Input'!O$24)-1)/(1-'Post Eval Input'!AA$20))<-1,-1,(((N28/L28)*('Post Eval Input'!O$23/'Post Eval Input'!O$24)-1)/(1-'Post Eval Input'!AA$20))),0) -> -0.4843008089 | U28: ='Predicted B-C'!P25 -> -0.6 | X28: =IF('Post Eval Input'!V36<>0,2.0657*'Post Eval Input'!V36^(-0.4726),0) -> 0.6383313771 | Y28: =IF('Post Eval Input'!V36<>0,3.7137*'Post Eval Input'!V36^(-0.5743),0) -> 0.8913187203
C29: ='Predicted B-C'!D26 -> 0 | D29: ='Predicted B-C'!E26 -> 0 | K29: ='Post Eval Input'!V37/'Post Eval Input'!G$23 -> 0 | L29: ='Post Eval Input'!W37/'Post Eval Input'!$G$23 -> 0 | M29: ='Post Eval Input'!AC37/'Post Eval Input'!G$24 -> 0 | N29: ='Post Eval Input'!AD37/'Post Eval Input'!G$24 -> 0 | O29: 0 | P29: =IF(O29<>0,((M29/K29)*('Post Eval Input'!O$23/'Post Eval Input'!O$24)-1),0) -> 0 | Q29: =IF(AND(P29<>0,P29<>""),IF(P29<=0,IF(ABS(P29)>=X29,IF(SIGN(P29)=SIGN('Predicted B-C'!P26),"YES","UKN"),"NO"),IF(ABS(P29)>=Y29,IF(SIGN(P29)=SIGN('Predicted B-C'!P26),"YES","N/A"),"NO")),"") ->  | R29: =P29/(1-'Post Eval Input'!AA$20) -> 0 | S29: 0 | T29: =IF(S29<>0,IF((((N29/L29)*('Post Eval Input'!O$23/'Post Eval Input'!O$24)-1)/(1-'Post Eval Input'!AA$20))<-1,-1,(((N29/L29)*('Post Eval Input'!O$23/'Post Eval Input'!O$24)-1)/(1-'Post Eval Input'!AA$20))),0) -> 0 | U29: ='Predicted B-C'!P26 -> 0 | X29: =IF('Post Eval Input'!V37<>0,2.0657*'Post Eval Input'!V37^(-0.4726),0) -> 0 | Y29: =IF('Post Eval Input'!V37<>0,3.7137*'Post Eval Input'!V37^(-0.5743),0) -> 0
C30: ='Predicted B-C'!D27 -> 0 | D30: ='Predicted B-C'!E27 -> 0 | K30: ='Post Eval Input'!V38/'Post Eval Input'!G$23 -> 0 | L30: ='Post Eval Input'!W38/'Post Eval Input'!$G$23 -> 0 | M30: ='Post Eval Input'!AC38/'Post Eval Input'!G$24 -> 0 | N30: ='Post Eval Input'!AD38/'Post Eval Input'!G$24 -> 0 | O30: 0 | P30: =IF(O30<>0,((M30/K30)*('Post Eval Input'!O$23/'Post Eval Input'!O$24)-1),0) -> 0 | Q30: =IF(AND(P30<>0,P30<>""),IF(P30<=0,IF(ABS(P30)>=X30,IF(SIGN(P30)=SIGN('Predicted B-C'!P27),"YES","UKN"),"NO"),IF(ABS(P30)>=Y30,IF(SIGN(P30)=SIGN('Predicted B-C'!P27),"YES","N/A"),"NO")),"") ->  | R30: =P30/(1-'Post Eval Input'!AA$20) -> 0 | S30: 0 | T30: =IF(S30<>0,IF((((N30/L30)*('Post Eval Input'!O$23/'Post Eval Input'!O$24)-1)/(1-'Post Eval Input'!AA$20))<-1,-1,(((N30/L30)*('Post Eval Input'!O$23/'Post Eval Input'!O$24)-1)/(1-'Post Eval Input'!AA$20))),0) -> 0 | U30: ='Predicted B-C'!P27 -> 0 | X30: =IF('Post Eval Input'!V38<>0,2.0657*'Post Eval Input'!V38^(-0.4726),0) -> 0 | Y30: =IF('Post Eval Input'!V38<>0,3.7137*'Post Eval Input'!V38^(-0.5743),0) -> 0
C31: ='Predicted B-C'!D28 -> New Traffic Signal | D31: ='Predicted B-C'!E28 -> Angle crashes | K31: ='Post Eval Input'!V39/'Post Eval Input'!G$23 -> 3.428571429 | L31: ='Post Eval Input'!W39/'Post Eval Input'!$G$23 -> 848.6285714 | M31: ='Post Eval Input'!AC39/'Post Eval Input'!G$24 -> 1.334552102 | N31: ='Post Eval Input'!AD39/'Post Eval Input'!G$24 -> 219.1000914 | O31: -0.6107556368 | P31: =IF(O31<>0,((M31/K31)*('Post Eval Input'!O$23/'Post Eval Input'!O$24)-1),0) -> -0.6410863664 | Q31: =IF(AND(P31<>0,P31<>""),IF(P31<=0,IF(ABS(P31)>=X31,IF(SIGN(P31)=SIGN('Predicted B-C'!P28),"YES","UKN"),"NO"),IF(ABS(P31)>=Y31,IF(SIGN(P31)=SIGN('Predicted B-C'!P28),"YES","N/A"),"NO")),"") -> YES | R31: =P31/(1-'Post Eval Input'!AA$20) -> -0.6410863664 | S31: -0.741818625 | T31: =IF(S31<>0,IF((((N31/L31)*('Post Eval Input'!O$23/'Post Eval Input'!O$24)-1)/(1-'Post Eval Input'!AA$20))<-1,-1,(((N31/L31)*('Post Eval Input'!O$23/'Post Eval Input'!O$24)-1)/(1-'Post Eval Input'!AA$20))),0) -> -0.7619366543 | U31: ='Predicted B-C'!P28 -> -0.6 | X31: =IF('Post Eval Input'!V39<>0,2.0657*'Post Eval Input'!V39^(-0.4726),0) -> 0.4600228632 | Y31: =IF('Post Eval Input'!V39<>0,3.7137*'Post Eval Input'!V39^(-0.5743),0) -> 0.5986203845
C32: ='Predicted B-C'!D29 -> 0 | D32: ='Predicted B-C'!E29 -> Rear-end crashes ( expected to increase) | K32: ='Post Eval Input'!V40/'Post Eval Input'!G$23 -> 2 | L32: ='Post Eval Input'!W40/'Post Eval Input'!$G$23 -> 652.4571429 | M32: ='Post Eval Input'!AC40/'Post Eval Input'!G$24 -> 2.669104205 | N32: ='Post Eval Input'!AD40/'Post Eval Input'!G$24 -> 926.3459781 | O32: 0.3345521024 | P32: =IF(O32<>0,((M32/K32)*('Post Eval Input'!O$23/'Post Eval Input'!O$24)-1),0) -> 0.2305610295 | Q32: =IF(AND(P32<>0,P32<>""),IF(P32<=0,IF(ABS(P32)>=X32,IF(SIGN(P32)=SIGN('Predicted B-C'!P29),"YES","UKN"),"NO"),IF(ABS(P32)>=Y32,IF(SIGN(P32)=SIGN('Predicted B-C'!P29),"YES","N/A"),"NO")),"") -> NO | R32: =P32/(1-'Post Eval Input'!AA$20) -> 0.2305610295 | S32: 0.4197805759 | T32: =IF(S32<>0,IF((((N32/L32)*('Post Eval Input'!O$23/'Post Eval Input'!O$24)-1)/(1-'Post Eval Input'!AA$20))<-1,-1,(((N32/L32)*('Post Eval Input'!O$23/'Post Eval Input'!O$24)-1)/(1-'Post Eval Input'!AA$20))),0) -> 0.3091483233 | U32: ='Predicted B-C'!P29 -> 0.25 | X32: =IF('Post Eval Input'!V40<>0,2.0657*'Post Eval Input'!V40^(-0.4726),0) -> 0.5934814374 | Y32: =IF('Post Eval Input'!V40<>0,3.7137*'Post Eval Input'!V40^(-0.5743),0) -> 0.8158033545
C33: ='Predicted B-C'!D30 -> 0 | D33: ='Predicted B-C'!E30 -> 0 | K33: ='Post Eval Input'!V41/'Post Eval Input'!G$23 -> 0 | L33: ='Post Eval Input'!W41/'Post Eval Input'!$G$23 -> 0 | M33: ='Post Eval Input'!AC41/'Post Eval Input'!G$24 -> 0 | N33: ='Post Eval Input'!AD41/'Post Eval Input'!G$24 -> 0 | O33: 0 | P33: =IF(O33<>0,((M33/K33)*('Post Eval Input'!O$23/'Post Eval Input'!O$24)-1),0) -> 0 | Q33: =IF(AND(P33<>0,P33<>""),IF(P33<=0,IF(ABS(P33)>=X33,IF(SIGN(P33)=SIGN('Predicted B-C'!P30),"YES","UKN"),"NO"),IF(ABS(P33)>=Y33,IF(SIGN(P33)=SIGN('Predicted B-C'!P30),"YES","N/A"),"NO")),"") ->  | R33: =P33/(1-'Post Eval Input'!AA$20) -> 0 | S33: 0 | T33: =IF(S33<>0,IF((((N33/L33)*('Post Eval Input'!O$23/'Post Eval Input'!O$24)-1)/(1-'Post Eval Input'!AA$20))<-1,-1,(((N33/L33)*('Post Eval Input'!O$23/'Post Eval Input'!O$24)-1)/(1-'Post Eval Input'!AA$20))),0) -> 0 | U33: ='Predicted B-C'!P30 -> 0 | X33: =IF('Post Eval Input'!V41<>0,2.0657*'Post Eval Input'!V41^(-0.4726),0) -> 0 | Y33: =IF('Post Eval Input'!V41<>0,3.7137*'Post Eval Input'!V41^(-0.5743),0) -> 0
C34: ='Predicted B-C'!D31 -> 0 | D34: ='Predicted B-C'!E31 -> 0 | K34: ='Post Eval Input'!V42/'Post Eval Input'!G$23 -> 0 | L34: ='Post Eval Input'!W42/'Post Eval Input'!$G$23 -> 0 | M34: ='Post Eval Input'!AC42/'Post Eval Input'!G$24 -> 0 | N34: ='Post Eval Input'!AD42/'Post Eval Input'!G$24 -> 0 | O34: 0 | P34: =IF(O34<>0,((M34/K34)*('Post Eval Input'!O$23/'Post Eval Input'!O$24)-1),0) -> 0 | Q34: =IF(AND(P34<>0,P34<>""),IF(P34<=0,IF(ABS(P34)>=X34,IF(SIGN(P34)=SIGN('Predicted B-C'!P31),"YES","UKN"),"NO"),IF(ABS(P34)>=Y34,IF(SIGN(P34)=SIGN('Predicted B-C'!P31),"YES","N/A"),"NO")),"") ->  | R34: =P34/(1-'Post Eval Input'!AA$20) -> 0 | S34: 0 | T34: =IF(S34<>0,IF((((N34/L34)*('Post Eval Input'!O$23/'Post Eval Input'!O$24)-1)/(1-'Post Eval Input'!AA$20))<-1,-1,(((N34/L34)*('Post Eval Input'!O$23/'Post Eval Input'!O$24)-1)/(1-'Post Eval Input'!AA$20))),0) -> 0 | U34: ='Predicted B-C'!P31 -> 0 | X34: =IF('Post Eval Input'!V42<>0,2.0657*'Post Eval Input'!V42^(-0.4726),0) -> 0 | Y34: =IF('Post Eval Input'!V42<>0,3.7137*'Post Eval Input'!V42^(-0.5743),0) -> 0
C35: ='Predicted B-C'!D32 -> 0 | D35: ='Predicted B-C'!E32 -> 0 | K35: ='Post Eval Input'!V43/'Post Eval Input'!G$23 -> 0 | L35: ='Post Eval Input'!W43/'Post Eval Input'!$G$23 -> 0 | M35: ='Post Eval Input'!AC43/'Post Eval Input'!G$24 -> 0 | N35: ='Post Eval Input'!AD43/'Post Eval Input'!G$24 -> 0 | O35: 0 | P35: =IF(O35<>0,((M35/K35)*('Post Eval Input'!O$23/'Post Eval Input'!O$24)-1),0) -> 0 | Q35: =IF(AND(P35<>0,P35<>""),IF(P35<=0,IF(ABS(P35)>=X35,IF(SIGN(P35)=SIGN('Predicted B-C'!P32),"YES","UKN"),"NO"),IF(ABS(P35)>=Y35,IF(SIGN(P35)=SIGN('Predicted B-C'!P32),"YES","N/A"),"NO")),"") ->  | R35: =P35/(1-'Post Eval Input'!AA$20) -> 0 | S35: 0 | T35: =IF(S35<>0,IF((((N35/L35)*('Post Eval Input'!O$23/'Post Eval Input'!O$24)-1)/(1-'Post Eval Input'!AA$20))<-1,-1,(((N35/L35)*('Post Eval Input'!O$23/'Post Eval Input'!O$24)-1)/(1-'Post Eval Input'!AA$20))),0) -> 0 | U35: ='Predicted B-C'!P32 -> 0 | X35: =IF('Post Eval Input'!V43<>0,2.0657*'Post Eval Input'!V43^(-0.4726),0) -> 0 | Y35: =IF('Post Eval Input'!V43<>0,3.7137*'Post Eval Input'!V43^(-0.5743),0) -> 0
C36: ='Predicted B-C'!D33 -> 0 | D36: ='Predicted B-C'!E33 -> 0 | K36: ='Post Eval Input'!V44/'Post Eval Input'!G$23 -> 0 | L36: ='Post Eval Input'!W44/'Post Eval Input'!$G$23 -> 0 | M36: ='Post Eval Input'!AC44/'Post Eval Input'!G$24 -> 0 | N36: ='Post Eval Input'!AD44/'Post Eval Input'!G$24 -> 0 | O36: 0 | P36: =IF(O36<>0,((M36/K36)*('Post Eval Input'!O$23/'Post Eval Input'!O$24)-1),0) -> 0 | Q36: =IF(AND(P36<>0,P36<>""),IF(P36<=0,IF(ABS(P36)>=X36,IF(SIGN(P36)=SIGN('Predicted B-C'!P33),"YES","UKN"),"NO"),IF(ABS(P36)>=Y36,IF(SIGN(P36)=SIGN('Predicted B-C'!P33),"YES","N/A"),"NO")),"") ->  | R36: =P36/(1-'Post Eval Input'!AA$20) -> 0 | S36: 0 | T36: =IF(S36<>0,IF((((N36/L36)*('Post Eval Input'!O$23/'Post Eval Input'!O$24)-1)/(1-'Post Eval Input'!AA$20))<-1,-1,(((N36/L36)*('Post Eval Input'!O$23/'Post Eval Input'!O$24)-1)/(1-'Post Eval Input'!AA$20))),0) -> 0 | U36: ='Predicted B-C'!P33 -> 0 | X36: =IF('Post Eval Input'!V44<>0,2.0657*'Post Eval Input'!V44^(-0.4726),0) -> 0 | Y36: =IF('Post Eval Input'!V44<>0,3.7137*'Post Eval Input'!V44^(-0.5743),0) -> 0
AM42: SIGNIFICANCE TEST LOGIC (COLUMN Q) | AU42: STEP NOTES
AM43: IF "ARRF Adj for Vol" is non-zero and non-"blank" | AU43: If there is a value to test
AM44: THEN
AN46: IF "ARRF Adj for Vol"<0 | AU46: Test change in crashes
AN48: THEN | AU48: Fewer crashes than before
AO49: IF ABS(ARRF Adj for Vol) >= Mod Bin DECR curve | AV49: Is change in crashes Significant?
AP50: THEN
AQ51: IF sign of "CRF" equals sign of "ARRF Adj for Vol" | AV51: Was change In Line with Expecations?
AQ52: THEN Write "YES" | AV52: "Yes" - if Significant and In Line with expectations
AQ53: ELSE Write "N/A" | AV53: "N/A" - if Significant and Out of Line with expectations
AP54: ELSE Write "NO" | AV54: "No" - if not Significant
AN56: ELSE | AU56: More crashes than before
AO57: IF ABS(ARRF Adj for Vol) >= Mod Bin INCR curve | AV57: Is change in crashes Significant?
AP58: THEN
AQ59: IF sign of "CRF" equals sign of "ARRF Adj for Vol" | AV59: Was change In Line with Expecations?
AQ60: THEN Write "YES" | AV60: "Yes" - if Significant and In Line with expectations
AQ61: ELSE Write "N/A" | AV61: "N/A" - if Significant and Out of Line with expectations
AP62: ELSE Write "NO" | AV62: "No" - if not Significant
AM64: ELSE
AM65: Write "" (blank cell) | AU65: No value to test - write blank cell

Sheet Post-Eval B-C
D3: Alaska DOT&PF
D4: Highway Safety Improvement Program
D5: HSIP Project Effectiveness Evaluation
D6: Computation of Actual Benefit/Cost Ratio
C8: HSIP Project Name: | E8: ='Post Eval Input'!D8 -> Test Intersection - Regional Project for the Betterment of All Mankind
C9: Construction Project Name: | E9: ='Post Eval Input'!E11 -> Test Construction Project
C10: Const. Project Number (Federal): | E10: ='Post Eval Input'!E15 -> TEST-PROJ-1
C11: Const. Project Number (AKSAS): | E11: ='Post Eval Input'!E16 -> 12345
C12: Form Completed by: | E12: ='Post Eval Input'!T8 -> Joe Traffic
C13: Date: | E13: ='Post Eval Input'!AB8 -> 2032-07-15
C15: Financial/Time Factors
C16: Rate of Return (from Project Ranking worksheet): | I16: ='Predicted B-C'!G11 -> 0.03
C17: Average Life of Improvement (from Project Ranking worksheet): | I17: ='Predicted B-C'!G48 -> 10.5952381
C18: Length of "After" evaluation period (years) (from Post Eval Input worksheet): | I18: ='Post Eval Input'!G24 -> 2.997260274
C20: Actual B/C (Acc and M&O Benefits Only)
C21: Total Project Development and Construction Cost: | I21: 2500000
C22: Annual M&O Cost or Saving (from HSIP Project Ranking worksheet): | I22: ='Predicted B-C'!F48*1000 -> 11500
C23: Annualized Construction and M&O Costs: | I23: =IF((I21+I22)<>0,(-PMT(I16,I17,I21,0)+(IF($I22>0,1,0)*I22)),0) -> 290431.1445
C24: Projected Crash Cost in "After" period at "Before" rate (susceptible crashes only): | I24: ='Post Eval Input'!L46*('Post Eval Input'!G24/'Post Eval Input'!G23) -> 9088635.147
C25: Actual Crash Cost during "After" period (susceptible crashes only): | I25: ='Post Eval Input'!X46 -> 5015900
C26: Unadjusted Crash Cost Reduction: | I26: =I24-I25 -> 4072735.147
C27: Crash Cost Reduction adjusted for crash trend: | I27: =I26/(1-'Post Eval Input'!AA20) -> 4072735.147
C28: Annualized Safety and M&O Benefits | I28: =IF(I27<>0,(I27/I18)+(IF($I22<0,1,0)*$I22),0) -> 1358819.313
C29: Actual Benefit Cost Ratio (Crash and M&O Costs Only): | I29: =IF((I21+I22)<>0,IF(I23<>0,ROUND(I28/(I23),2)&" : 1",0),0) -> 4.68 : 1
C31: Comparison of Actual vs Predicted
C33: Total Project Development and Construction Cost: | E33: Predicted: | F33: ='Predicted B-C'!E48*1000 -> 2100000 | H33: Difference: | I33: =IF(F34>F33,"+"&ROUND((F34-F33)/F33,2)*100&"%",(F34-F33)/F33) -> +19%
E34: Actual: | F34: =I21 -> 2500000
C36: Annualized Safety and M&O Benefits: | E36: Predicted: | F36: ='Predicted B-C'!O48 -> 1197500 | H36: Difference: | I36: =IF(F37>F36,"+"&ROUND((F37-F36)/F36,2)*100&"%",(F37-F36)/F36) -> +13%
E37: Actual: | F37: =I28 -> 1358819.313
C39: Project Benefit-Cost Ratio (Not Including Delay): | E39: Predicted: | F39: ='Predicted B-C'!T48 -> 4.8 : 1 | H39: Difference: | I39: =IF(F44>F43,"+"&ROUND((F44-F43)/F43,2)*100&"%",(F44-F43)/F43) -> -0.02083333333
E40: Actual: | F40: =I29 -> 4.68 : 1
F43: ='Predicted B-C'!Z48 -> 4.8
F44: =IF(I23<>0,ROUND(I28/(I23),1)) -> 4.7

Sheet Ann Rpt-Input,Link
M1: (Don't Delete)
C2: Factors for B/C Comps | G2: Factors apply to all projects below. | M2: Data Table for Trend pulldown | N2: YES
C3: Discount Rate: | E3: 0.03 | N3: NO
C4: Trend Usage (Yes/No): | E4: NO | G4: Calculator will compute with or without Trend data. | M4: Volume Growth Rate (%): | N4: 0 | P4: Blank = 0%
C5: Volume Growth Rate (%): | E5: 0 | G5: Traffic Volume growth rate during Project Life. Blank = 0%. | N5: 0.005
C6: Accident Costs (Smoothed) | N6: 0.01
C7: Property Damage Only: | E7: ='Predicted B-C'!T12 -> 29900 | N7: 0.015
C8: Possible Injury | E8: ='Predicted B-C'!T13 -> 179200 | N8: 0.02
C9: Minor Injury: | E9: ='Predicted B-C'!T14 -> 567000 | N9: 0.025
C10: Serious Injury: | E10: ='Predicted B-C'!T15 -> 1493000 | N10: 0.03
C11: Fatality: | E11: ='Predicted B-C'!T16 -> 2986000
H12: Please Complete Light Blue Fields before submitting Before-After Results
C15: Preliminary Project Description/Planning | N15: Volume/Crash Data | AO15: Trend | AP15: Project Cost | AR15: Predicted | AT15: Calculated Results
C16: Project Name | D16: Region | E16: IRIS | F16: HSIP Annual Report Year | G16: Location Type - Intersection (I) or Segment (S) | H16: Segment Length (in miles), if applicable | I16: Improvement Type Number | J16: Improvement | K16: Annual M&O Cost (1000s) ("-" means income) | L16: Life of Impvmt (yrs) | M16: Crash Types Susceptible to Reduction or Increase | N16: BEFORE | W16: INTERIM (btwn BEFORE & construction) | AF16: AFTER | AR16: CRF | AS16: B/C | AT16: CRF | AU16: CRF | AV16: B/C
N17: PDO | O17: Possible Injury | P17: Minor Injury | Q17: Serious Injury | R17: Fatal | S17: Avg. ADT | T17: Begin Date | U17: End Date | V17: No of Yrs | W17: PDO | X17: Possible Injury | Y17: Minor Injury | Z17: Serious Injury | AA17: Fatal | AB17: Avg. ADT | AC17: Begin Date | AD17: End Date | AE17: No of Yrs | AF17: PDO | AG17: Possible Injury | AH17: Minor Injury | AI17: Serious Injury | AJ17: Fatal | AK17: Avg. ADT | AL17: Begin Date | AM17: End Date | AN17: No of Yrs | AO17: Change in Crash Rate btwn (Before+Int) and After | AP17: Predicted (1000s) | AQ17: Actual (1000s) | AR17: COST (from Hdbk) | AT17: RATE | AU17: COST (Annualized Method) | AV17: Annualized Method
C18: ='Predicted B-C'!E7 -> Test Intersection - Regional Project for the Betterment of All Mankind | D18: S | E18: ='Post Eval Input'!E16:F16 -> 12345 | F18: 2032 | G18: =IF('Post Eval Input'!Q12="I","INTERSECTION",IF('Post Eval Input'!Q12="S","SEGMENT","NO ENTRY")) -> INTERSECTION | H18: =IF(G18="SEGMENT",'Post Eval Input'!Q14,"N/A") -> N/A | I18: ='Predicted B-C'!C22 -> 108 | J18: ='Predicted B-C'!D22 -> Intersection Illumination | K18: ='Predicted B-C'!F43 -> 1 | L18: ='Predicted B-C'!G43 -> 15 | M18: ='Predicted B-C'!E22 -> Night Crashes at unlighted intersections | N18: ='Predicted B-C'!R22 -> 6 | O18: ='Predicted B-C'!S22 -> 0 | P18: ='Predicted B-C'!T22 -> 2 | Q18: ='Predicted B-C'!U22 -> 1 | R18: ='Predicted B-C'!V22 -> 0 | S18: ='Post Eval Input'!O21 -> 10000 | T18: ='Post Eval Input'!E21 -> 2019-01-01 | U18: ='Post Eval Input'!F21 -> 2023-12-31 | V18: ='Post Eval Input'!G21 -> 5 | W18: ='Post Eval Input'!Q33 -> 2 | X18: ='Post Eval Input'!R33 -> 0 | Y18: ='Post Eval Input'!S33 -> 0 | Z18: ='Post Eval Input'!T33 -> 1 | AA18: ='Post Eval Input'!U33 -> 0 | AB18: ='Post Eval Input'!O22 -> 10500 | AC18: ='Post Eval Input'!E22 -> 2024-01-01 | AD18: ='Post Eval Input'!F22 -> 2025-12-31 | AE18: ='Post Eval Input'!G22 -> 2 | AF18: ='Post Eval Input'!X33 -> 2 | AG18: ='Post Eval Input'!Y33 -> 0 | AH18: ='Post Eval Input'!Z33 -> 0 | AI18: ='Post Eval Input'!AA33 -> 0 | AJ18: ='Post Eval Input'!AB33 -> 0 | AK18: ='Post Eval Input'!O24 -> 11000 | AL18: ='Post Eval Input'!E24 -> 2029-01-01 | AM18: ='Post Eval Input'!F24 -> 2031-12-31 | AN18: ='Post Eval Input'!G24 -> 2.997260274 | AO18: ='Post Eval Input'!AA20 -> 0 | AP18: ='Predicted B-C'!E43 -> 250 | AQ18: 300 | AR18: ='Predicted B-C'!P22 -> -0.5 | AS18: ='Predicted B-C'!T43 -> 12.8 : 1 | AT18: ='Post-Eval ARF'!R25 -> -0.6410863664 | AU18: ='Post-Eval ARF'!T25 -> -0.9704582924
M19: ='Predicted B-C'!E23 -> 0 | N19: ='Predicted B-C'!R23 -> 0 | O19: ='Predicted B-C'!S23 -> 0 | P19: ='Predicted B-C'!T23 -> 0 | Q19: ='Predicted B-C'!U23 -> 0 | R19: ='Predicted B-C'!V23 -> 0 | W19: ='Post Eval Input'!Q34 -> 0 | X19: ='Post Eval Input'!R34 -> 0 | Y19: ='Post Eval Input'!S34 -> 0 | Z19: ='Post Eval Input'!T34 -> 0 | AA19: ='Post Eval Input'!U34 -> 0 | AF19: ='Post Eval Input'!X34 -> 0 | AG19: ='Post Eval Input'!Y34 -> 0 | AH19: ='Post Eval Input'!Z34 -> 0 | AI19: ='Post Eval Input'!AA34 -> 0 | AJ19: ='Post Eval Input'!AB34 -> 0 | AR19: ='Predicted B-C'!P23 -> 0 | AT19: ='Post-Eval ARF'!R26 -> 0 | AU19: ='Post-Eval ARF'!T26 -> 0
M20: ='Predicted B-C'!E24 -> 0 | N20: ='Predicted B-C'!R24 -> 0 | O20: ='Predicted B-C'!S24 -> 0 | P20: ='Predicted B-C'!T24 -> 0 | Q20: ='Predicted B-C'!U24 -> 0 | R20: ='Predicted B-C'!V24 -> 0 | W20: ='Post Eval Input'!Q35 -> 0 | X20: ='Post Eval Input'!R35 -> 0 | Y20: ='Post Eval Input'!S35 -> 0 | Z20: ='Post Eval Input'!T35 -> 0 | AA20: ='Post Eval Input'!U35 -> 0 | AF20: ='Post Eval Input'!X35 -> 0 | AG20: ='Post Eval Input'!Y35 -> 0 | AH20: ='Post Eval Input'!Z35 -> 0 | AI20: ='Post Eval Input'!AA35 -> 0 | AJ20: ='Post Eval Input'!AB35 -> 0 | AR20: ='Predicted B-C'!P24 -> 0 | AT20: ='Post-Eval ARF'!R27 -> 0 | AU20: ='Post-Eval ARF'!T27 -> 0
I21: ='Predicted B-C'!C25 -> 101.3 | J21: ='Predicted B-C'!D25 -> Install Lt Turn Pocket at Rural, Unsignalized Intersection (Major Road Approach Only) | K21: ='Predicted B-C'!F44 -> 0.5 | L21: ='Predicted B-C'!G44 -> 10 | M21: ='Predicted B-C'!E25 -> Rear-ends and side-swipes involving turning cars making the target movement | N21: ='Predicted B-C'!R25 -> 5 | O21: ='Predicted B-C'!S25 -> 0 | P21: ='Predicted B-C'!T25 -> 2 | Q21: ='Predicted B-C'!U25 -> 2 | R21: ='Predicted B-C'!V25 -> 0 | W21: ='Post Eval Input'!Q36 -> 1 | X21: ='Post Eval Input'!R36 -> 0 | Y21: ='Post Eval Input'!S36 -> 1 | Z21: ='Post Eval Input'!T36 -> 1 | AA21: ='Post Eval Input'!U36 -> 0 | AF21: ='Post Eval Input'!X36 -> 1 | AG21: ='Post Eval Input'!Y36 -> 0 | AH21: ='Post Eval Input'!Z36 -> 0 | AI21: ='Post Eval Input'!AA36 -> 1 | AJ21: ='Post Eval Input'!AB36 -> 0 | AP21: ='Predicted B-C'!E44 -> 600 | AQ21: 700 | AR21: ='Predicted B-C'!P25 -> -0.6 | AS21: ='Predicted B-C'!T44 -> 7.2 : 1 | AT21: ='Post-Eval ARF'!R28 -> -0.6410863664 | AU21: ='Post-Eval ARF'!T28 -> -0.4843008089
M22: ='Predicted B-C'!E26 -> 0 | N22: ='Predicted B-C'!R26 -> 0 | O22: ='Predicted B-C'!S26 -> 0 | P22: ='Predicted B-C'!T26 -> 0 | Q22: ='Predicted B-C'!U26 -> 0 | R22: ='Predicted B-C'!V26 -> 0 | W22: ='Post Eval Input'!Q37 -> 0 | X22: ='Post Eval Input'!R37 -> 0 | Y22: ='Post Eval Input'!S37 -> 0 | Z22: ='Post Eval Input'!T37 -> 0 | AA22: ='Post Eval Input'!U37 -> 0 | AF22: ='Post Eval Input'!X37 -> 0 | AG22: ='Post Eval Input'!Y37 -> 0 | AH22: ='Post Eval Input'!Z37 -> 0 | AI22: ='Post Eval Input'!AA37 -> 0 | AJ22: ='Post Eval Input'!AB37 -> 0 | AR22: ='Predicted B-C'!P26 -> 0 | AT22: ='Post-Eval ARF'!R29 -> 0 | AU22: ='Post-Eval ARF'!T29 -> 0
M23: ='Predicted B-C'!E27 -> 0 | N23: ='Predicted B-C'!R27 -> 0 | O23: ='Predicted B-C'!S27 -> 0 | P23: ='Predicted B-C'!T27 -> 0 | Q23: ='Predicted B-C'!U27 -> 0 | R23: ='Predicted B-C'!V27 -> 0 | W23: ='Post Eval Input'!Q38 -> 0 | X23: ='Post Eval Input'!R38 -> 0 | Y23: ='Post Eval Input'!S38 -> 0 | Z23: ='Post Eval Input'!T38 -> 0 | AA23: ='Post Eval Input'!U38 -> 0 | AF23: ='Post Eval Input'!X38 -> 0 | AG23: ='Post Eval Input'!Y38 -> 0 | AH23: ='Post Eval Input'!Z38 -> 0 | AI23: ='Post Eval Input'!AA38 -> 0 | AJ23: ='Post Eval Input'!AB38 -> 0 | AR23: ='Predicted B-C'!P27 -> 0 | AT23: ='Post-Eval ARF'!R30 -> 0 | AU23: ='Post-Eval ARF'!T30 -> 0
I24: ='Predicted B-C'!C28 -> 109 | J24: ='Predicted B-C'!D28 -> New Traffic Signal | K24: ='Predicted B-C'!F45 -> 10 | L24: ='Predicted B-C'!G45 -> 10 | M24: ='Predicted B-C'!E28 -> Angle crashes | N24: ='Predicted B-C'!R28 -> 10 | O24: ='Predicted B-C'!S28 -> 0 | P24: ='Predicted B-C'!T28 -> 5 | Q24: ='Predicted B-C'!U28 -> 1 | R24: ='Predicted B-C'!V28 -> 0 | W24: ='Post Eval Input'!Q39 -> 6 | X24: ='Post Eval Input'!R39 -> 0 | Y24: ='Post Eval Input'!S39 -> 2 | Z24: ='Post Eval Input'!T39 -> 0 | AA24: ='Post Eval Input'!U39 -> 0 | AF24: ='Post Eval Input'!X39 -> 3 | AG24: ='Post Eval Input'!Y39 -> 0 | AH24: ='Post Eval Input'!Z39 -> 1 | AI24: ='Post Eval Input'!AA39 -> 0 | AJ24: ='Post Eval Input'!AB39 -> 0 | AP24: ='Predicted B-C'!E45 -> 1250 | AQ24: 1500 | AR24: ='Predicted B-C'!P28 -> -0.6 | AS24: ='Predicted B-C'!T45 -> 2.6 : 1 | AT24: ='Post-Eval ARF'!R31 -> -0.6410863664 | AU24: ='Post-Eval ARF'!T31 -> -0.7619366543
M25: ='Predicted B-C'!E29 -> Rear-end crashes ( expected to increase) | N25: ='Predicted B-C'!R29 -> 6 | O25: ='Predicted B-C'!S29 -> 0 | P25: ='Predicted B-C'!T29 -> 5 | Q25: ='Predicted B-C'!U29 -> 0 | R25: ='Predicted B-C'!V29 -> 0 | W25: ='Post Eval Input'!Q40 -> 2 | X25: ='Post Eval Input'!R40 -> 0 | Y25: ='Post Eval Input'!S40 -> 0 | Z25: ='Post Eval Input'!T40 -> 1 | AA25: ='Post Eval Input'!U40 -> 0 | AF25: ='Post Eval Input'!X40 -> 5 | AG25: ='Post Eval Input'!Y40 -> 0 | AH25: ='Post Eval Input'!Z40 -> 2 | AI25: ='Post Eval Input'!AA40 -> 1 | AJ25: ='Post Eval Input'!AB40 -> 0 | AR25: ='Predicted B-C'!P29 -> 0.25 | AT25: ='Post-Eval ARF'!R32 -> 0.2305610295 | AU25: ='Post-Eval ARF'!T32 -> 0.3091483233
M26: ='Predicted B-C'!E30 -> 0 | N26: ='Predicted B-C'!R30 -> 0 | O26: ='Predicted B-C'!S30 -> 0 | P26: ='Predicted B-C'!T30 -> 0 | Q26: ='Predicted B-C'!U30 -> 0 | R26: ='Predicted B-C'!V30 -> 0 | W26: ='Post Eval Input'!Q41 -> 0 | X26: ='Post Eval Input'!R41 -> 0 | Y26: ='Post Eval Input'!S41 -> 0 | Z26: ='Post Eval Input'!T41 -> 0 | AA26: ='Post Eval Input'!U41 -> 0 | AF26: ='Post Eval Input'!X41 -> 0 | AG26: ='Post Eval Input'!Y41 -> 0 | AH26: ='Post Eval Input'!Z41 -> 0 | AI26: ='Post Eval Input'!AA41 -> 0 | AJ26: ='Post Eval Input'!AB41 -> 0 | AR26: ='Predicted B-C'!P30 -> 0 | AT26: ='Post-Eval ARF'!R33 -> 0 | AU26: ='Post-Eval ARF'!T33 -> 0
I27: ='Predicted B-C'!C31 -> 0 | J27: ='Predicted B-C'!D31 -> 0 | K27: ='Predicted B-C'!F46 -> 0 | L27: ='Predicted B-C'!G46 -> 0 | M27: ='Predicted B-C'!E31 -> 0 | N27: ='Predicted B-C'!R31 -> 0 | O27: ='Predicted B-C'!S31 -> 0 | P27: ='Predicted B-C'!T31 -> 0 | Q27: ='Predicted B-C'!U31 -> 0 | R27: ='Predicted B-C'!V31 -> 0 | W27: ='Post Eval Input'!Q42 -> 0 | X27: ='Post Eval Input'!R42 -> 0 | Y27: ='Post Eval Input'!S42 -> 0 | Z27: ='Post Eval Input'!T42 -> 0 | AA27: ='Post Eval Input'!U42 -> 0 | AF27: ='Post Eval Input'!X42 -> 0 | AG27: ='Post Eval Input'!Y42 -> 0 | AH27: ='Post Eval Input'!Z42 -> 0 | AI27: ='Post Eval Input'!AA42 -> 0 | AJ27: ='Post Eval Input'!AB42 -> 0 | AP27: ='Predicted B-C'!E46 -> 0 | AQ27: 0 | AR27: ='Predicted B-C'!P31 -> 0 | AS27: ='Predicted B-C'!T46 -> 0 | AT27: ='Post-Eval ARF'!R34 -> 0 | AU27: ='Post-Eval ARF'!T34 -> 0
M28: ='Predicted B-C'!E32 -> 0 | N28: ='Predicted B-C'!R32 -> 0 | O28: ='Predicted B-C'!S32 -> 0 | P28: ='Predicted B-C'!T32 -> 0 | Q28: ='Predicted B-C'!U32 -> 0 | R28: ='Predicted B-C'!V32 -> 0 | W28: ='Post Eval Input'!Q43 -> 0 | X28: ='Post Eval Input'!R43 -> 0 | Y28: ='Post Eval Input'!S43 -> 0 | Z28: ='Post Eval Input'!T43 -> 0 | AA28: ='Post Eval Input'!U43 -> 0 | AF28: ='Post Eval Input'!X43 -> 0 | AG28: ='Post Eval Input'!Y43 -> 0 | AH28: ='Post Eval Input'!Z43 -> 0 | AI28: ='Post Eval Input'!AA43 -> 0 | AJ28: ='Post Eval Input'!AB43 -> 0 | AR28: ='Predicted B-C'!P32 -> 0 | AT28: ='Post-Eval ARF'!R35 -> 0 | AU28: ='Post-Eval ARF'!T35 -> 0
M29: ='Predicted B-C'!E33 -> 0 | N29: ='Predicted B-C'!R33 -> 0 | O29: ='Predicted B-C'!S33 -> 0 | P29: ='Predicted B-C'!T33 -> 0 | Q29: ='Predicted B-C'!U33 -> 0 | R29: ='Predicted B-C'!V33 -> 0 | W29: ='Post Eval Input'!Q44 -> 0 | X29: ='Post Eval Input'!R44 -> 0 | Y29: ='Post Eval Input'!S44 -> 0 | Z29: ='Post Eval Input'!T44 -> 0 | AA29: ='Post Eval Input'!U44 -> 0 | AF29: ='Post Eval Input'!X44 -> 0 | AG29: ='Post Eval Input'!Y44 -> 0 | AH29: ='Post Eval Input'!Z44 -> 0 | AI29: ='Post Eval Input'!AA44 -> 0 | AJ29: ='Post Eval Input'!AB44 -> 0 | AR29: ='Predicted B-C'!P33 -> 0 | AT29: ='Post-Eval ARF'!R36 -> 0 | AU29: ='Post-Eval ARF'!T36 -> 0
J30: Wtd Average Life of Improvement: | L30: ='Post-Eval B-C'!I17 -> 10.5952381 | M30: Total Crashes (NOT a sum of above rows): | N30: ='Post Eval Input'!H21 -> 29 | O30: ='Post Eval Input'!I21 -> 0 | P30: ='Post Eval Input'!J21 -> 12 | Q30: ='Post Eval Input'!K21 -> 6 | R30: ='Post Eval Input'!L21 -> 0 | W30: ='Post Eval Input'!H22 -> 12 | X30: ='Post Eval Input'!I22 -> 0 | Y30: ='Post Eval Input'!J22 -> 3 | Z30: ='Post Eval Input'!K22 -> 3 | AA30: ='Post Eval Input'!L22 -> 0 | AF30: ='Post Eval Input'!H24 -> 13 | AG30: ='Post Eval Input'!I24 -> 0 | AH30: ='Post Eval Input'!J24 -> 6 | AI30: ='Post Eval Input'!K24 -> 2 | AJ30: ='Post Eval Input'!L24 -> 0 | AQ30: ='Post-Eval B-C'!I21/1000 -> 2500 | AS30: ='Predicted B-C'!T48 -> 4.8 : 1 | AV30: ='Post-Eval B-C'!I29 -> 4.68 : 1
M31: Sum of Crashes Susc to +or- due to proj: | N31: =SUM(N18:N29) -> 27 | O31: =SUM(O18:O29) -> 0 | P31: =SUM(P18:P29) -> 14 | Q31: =SUM(Q18:Q29) -> 4 | R31: =SUM(R18:R29) -> 0 | W31: =SUM(W18:W29) -> 11 | X31: =SUM(X18:X29) -> 0 | Y31: =SUM(Y18:Y29) -> 3 | Z31: =SUM(Z18:Z29) -> 3 | AA31: =SUM(AA18:AA29) -> 0 | AF31: =SUM(AF18:AF29) -> 11 | AG31: =SUM(AG18:AG29) -> 0 | AH31: =SUM(AH18:AH29) -> 3 | AI31: =SUM(AI18:AI29) -> 2 | AJ31: =SUM(AJ18:AJ29) -> 0 | AP31: =SUM(AP18:AP29) -> 2100 | AS31: ='Post-Eval B-C'!F29 -> 0
AQ34: Suggestion
AQ35: Actual Cost
AQ36: Pro-rated
AQ37: =AQ30*AP18/AP31 -> 297.6190476
AQ38: =AQ30*AP21/AP31 -> 714.2857143
AQ39: =AQ30*AP24/AP31 -> 1488.095238
AQ40: =AQ30*AP27/AP31 -> 0
AQ41: =SUM(AQ37:AQ40) -> 2500
AQ42: Total actual cost proportioned
AQ43: by predicted cost

Sheet Sheet1
